Cogmind - Beta 16 @@@ ROGUE MODE // 2025.11.17 @ 01:00:10 Player: Red Box Result: Self-destructed Performance ------------- Evolutions (1) 500 Regions Visited (3) 600 Robots Destroyed (103) 515 Value Destroyed (2429) 2429 Prototype IDs (8) 160 Alien Tech Used (0) 0 Bonus (262) 262 TOTAL SCORE: 4466 Bonus ------- High Alert Combat Kills 262 Cogmind --------- Core Integrity 245/400 Matter 295/300 Energy 235/280 System Corruption 1% Temperature Danger (494) Movement Treading (160) Location -9/Materials Parts ------- > --- POWER (1) -------- Heavy Ion Engine > --- PROPULSION (2) --- Improved Treads Improved Treads > --- UTILITY (4) ------ Heat Sink Large Storage Unit Targeting Computer Hardened Medium Armor Plating > --- WEAPON (2) ------- Advanced Beam Cannon > --- INVENTORY (15) --- Heavy Ion Engine Armored Wheel Hardened Medium Armor Plating Hardened Medium Armor Plating Hardened Medium Armor Plating Shield Generator Authchip [R/NC] Improved EM Shotgun Advanced Beam Cannon Advanced Beam Cannon Improved Light Cannon Rocket Launcher Mini Grenade Launcher Hammer Peak State ------------ > --- POWER ------------ Heavy Ion Engine > --- PROPULSION ------- Improved Treads Armored Wheel > --- UTILITY ---------- Large Storage Unit Targeting Computer Hardened Medium Armor Plating Shield Generator > --- WEAPON ----------- Advanced Beam Cannon Advanced Beam Cannon > --- INVENTORY -------- Heavy Ion Engine Large Matter Pod Hardened Medium Armor Plating Hardened Medium Armor Plating Hardened Medium Armor Plating Authchip [R/NC] Improved EM Shotgun Spread Laser Advanced Beam Cannon Improved Light Cannon Rocket Launcher Mini Grenade Launcher Hammer [Rating: 23] Favorites ----------- Power Ion Engine Engine Ion Engine Propulsion Aluminum Leg Treads Light Treads Leg Aluminum Leg Wheel Armored Wheel Utility Large Storage Unit Device Improved Terrain Scanner Storage Large Storage Unit Processor Targeting Computer Protection Hardened Light Armor Plating Weapon Improved Light Cannon Energy Gun Small Laser Energy Cannon Advanced Beam Cannon Ballistic Gun Autogun Ballistic Cannon Improved Light Cannon Launcher Mini Grenade Launcher Special Weapon Mining Laser Impact Weapon Hammer Build | -11 -10 -10 -9 ------- Run | Yrd Mat Min Mat Slots Evolved 2 | . . . 2 Power . | . . . . Propulsion . | . . . . Utility 2 | . . . 2 Weapon . | . . . . Parts Attached 45 | 7 14 2 22 Power 6 | 1 1 . 4 Engine 6 | 1 1 . 4 Core . | . . . . Reactor . | . . . . Propulsion 9 | 2 2 1 4 Treads 5 | . 1 1 3 Leg 2 | 2 . . . Wheel 2 | . 1 . 1 Hover . | . . . . Flight . | . . . . Utility 12 | 2 2 . 8 Device 6 | 1 . . 5 Storage 2 | 1 1 . . Processor 1 | . . . 1 Hackware . | . . . . Protection 3 | . 1 . 2 Artifact . | . . . . Weapon 18 | 2 9 1 6 Energy Gun 3 | 2 . . 1 Energy Cannon 2 | . . . 2 Ballistic Gun 2 | . . . 2 Ballistic Cannon 6 | . 5 1 . Launcher 3 | . 2 . 1 Special Weapon 1 | . 1 . . Impact Weapon 1 | . 1 . . Slashing Weapon . | . . . . Piercing Weapon . | . . . . Special Melee Weapon . | . . . . Unidentified Prototypes . | . . . . Parts Lost 9 | . . 1 8 Power 1 | . . . 1 Propulsion 3 | . . 1 2 Utility 2 | . . . 2 Weapon 3 | . . . 3 Highest Loss Streak 2 | . . 1 2 To Critical Strikes . | . . . . Average Backups 13 | 4 11 13 14 Power . | . . . . Propulsion 2 | 3 3 1 1 Utility 4 | . 3 6 4 Weapon 5 | 1 3 5 7 Tool/Special . | . . . . Unused Backups 18 | . 1 . 17 Power 2 | . . . 2 Propulsion 2 | . . . 2 Utility 8 | . . . 8 Weapon 6 | . 1 . 5 Tool/Special . | . . . . Average Slot Usage (%) 98 | . 98 100 98 Engine 12 | . 14 14 11 Treads 7 | . . 14 11 Leg 9 | . 26 . . Wheel 7 | . . 14 10 Device 8 | . 12 . 9 Storage 12 | . 14 14 11 Processor 5 | . . . 11 Protection 8 | . 1 14 11 Energy Cannon 2 | . . . 5 Ballistic Gun 2 | . . . 5 Ballistic Cannon 17 | . 23 27 9 Peak Build Rating 23 | 9 13 12 23 Average Rating 14 | 4 10 11 19 On Entrance 8 | . 9 12 12 Avg Prop Armor Cover (%) 7 | . 8 8 6 Naked Turns . | . . . . Heaviest Build 46 | 14 38 38 46 Greatest Support 23 | 20 20 20 23 Greatest Overweight (x) 9 | 3 9 2 3 Average Overweight (x) 1 | . . 1 2 Largest Inventory Capacity 15 | 8 15 15 15 Average Capacity 14 | 7 13 15 15 Most Carried 15 | 7 15 15 15 Average Carried 13 | 5 11 13 14 Final Capacity 15 | 8 15 15 15 Final Carried 15 | 7 12 15 14 Class Distribution -------------------- 100% | Mutant Dominant Class ---------------- Mutant | -10/Materials Mutant | -10/Mines Mutant | -9/Materials Resources | -11 -10 -10 -9 ----------- Run | Yrd Mat Min Mat Matter Collected 2461 | 270 388 628 1175 Remotely . | . . . . Salvage Created 2620 | 106 681 182 1651 Parts 199 | 5 56 13 125 Haulers Intercepted 8 | . 2 . 6 Recyclers Shooed 3 | . 1 . 2 Parts Field Recycled . | . . . . Retrieved Matter . | . . . . Parts Self-Destructed . | . . . . Prevented . | . . . . Parts Restored . | . . . . Kills | -11 -10 -10 -9 ------- Run | Yrd Mat Min Mat Combat Hostiles Destroyed 79 | . 18 11 50 Melee 1 | . . . 1 Guns 11 | . 5 . 6 Cannons 57 | . 8 10 39 AOE 9 | . 5 1 3 Classes Destroyed 11 | 2 6 2 1 Worker 2 | . 2 . . Builder 6 | . 5 . 1 Tunneler 2 | 2 . . . Hauler 8 | . 2 . 6 Recycler 2 | 1 1 . . Watcher 8 | . 3 . 5 Swarmer 25 | . 8 3 14 Grunt 36 | . 10 2 24 Duelist 2 | . . . 2 Sentry 12 | . . 2 10 Assembled 4 | . . 4 . Best Kill Streak 8 | 2 8 3 6 Combat Bots Only 6 | . 5 3 6 Max Kills in Single Turn 5 | 1 5 1 2 Gunslinging . | . . . . Exploded 3 | . 3 1 2 Melee 1 | . . . 1 Uniques/NPCs Destroyed . | . . . . Combat | -11 -10 -10 -9 -------- Run | Yrd Mat Min Mat Hostile Shots Fired 264 | . 47 47 170 Missed 73 | . 12 15 46 Hits 191 | . 35 32 124 Melee 6 | . . . 6 Projectile 185 | . 35 32 118 AOE 8 | . . 8 . Critical Strikes 1 | . . . 1 Part Disruptions 1 | . . 1 . Damage Taken 2353 | . 373 581 1399 Core 314 | . 92 67 155 Absorbed by Shields 184 | . . . 184 Regen/Repaired (Parts) 112 | . . . 112 Core Remaining (%) 68 | 100 . 36 . Volleys Fired 225 | 8 62 33 122 Largest 2 | 2 2 2 2 Hottest 136 | 90 100 66 136 Shots Fired 428 | 16 109 60 243 Gun 95 | 16 40 . 39 Cannon 316 | . 57 58 201 Launcher 10 | . 5 2 3 Special 7 | . 7 . . Kinetic 321 | . 57 58 206 Thermal 97 | 16 47 . 34 Explosive 10 | . 5 2 3 Electromagnetic . | . . . . Robot Hit Streak 16 | 13 12 6 16 Robot Miss Streak 6 | 1 3 5 6 Penetration Max . | . . . . Secondary Targets . | . . . . Shots Hit Robots 257 | 14 59 26 158 Core Hits 142 | 4 38 17 83 Critical Kills 1 | . . . 1 Critical Parts Destroyed 2 | . . . 2 Critical Strikes 13 | . 2 3 8 Destroy 1 | . . . 1 Blast 10 | . 2 3 5 Smash 2 | . . . 2 Melee Attacks 20 | . 4 . 16 Impact 20 | . 4 . 16 Slashing . | . . . . Piercing . | . . . . Sneak Attacks . | . . . . Combat Hostiles . | . . . . Follow-up Attacks . | . . . . Damage Inflicted 6057 | 162 1596 603 3696 Guns 1029 | 162 345 . 522 Cannons 3915 | . 609 526 2780 Explosions 920 | . 642 77 201 Melee 193 | . . . 193 Ramming . | . . . . Kinetic 3878 | . 609 526 2743 Thermal 1066 | 162 345 . 559 Explosive 920 | . 642 77 201 Electromagnetic . | . . . . Impact 193 | . . . 193 Slashing . | . . . . Piercing . | . . . . Highest Corruption 1 | . . . 1 Average Corruption 1 | . . . 1 Corruption Purged . | . . . . Corruption Blocked . | . . . . Effects 6 | . . . 6 Message Errors 4 | . . . 4 Matter Fused 1 | . . . 1 Data Loss (minor) 1 | . . . 1 Overload Shots . | . . . . Overflow Damage 165 | . 53 . 112 Projectiles 75 | . 27 . 48 Explosions 34 | . 26 . 8 Melee 56 | . . . 56 Knockbacks 26 | . 7 3 16 Impact 2 | . . . 2 Kinetic 23 | . 6 3 14 Secondary 1 | . 1 . . Self-Inflicted Damage 17 | . 4 13 . Shots 2 | . 1 1 . Rammed . | . . . . Targets Rammed . | . . . . Kicked . | . . . . Crushed . | . . . . Highest Temperature 494 | 150 429 141 494 Average Temperature 65 | 65 112 49 52 Received Heat Transfer 772 | . 177 117 478 Effects 7 | . 6 . 1 Shutdowns 3 | . 2 . 1 Interference 2 | . 2 . . Damage (minor) 2 | . 2 . . Siege Activations . | . . . . Martial Activations . | . . . . Shielding Activations . | . . . . Robots Disrupted . | . . . . Combat Hostiles . | . . . . Robots Corrupted 1 | . . . 1 Combat Hostiles 1 | . . . 1 Parts Fried . | . . . . Impact Corruptions 2 | . . . 2 Robots Melted . | . . . . Combat Hostiles . | . . . . Parts Melted 7 | 2 4 . 1 Heat Transferred 2154 | 434 856 . 864 Parts Sabotaged . | . . . . Parts Stolen . | . . . . Parts Stripped . | . . . . Power Chain Reactions . | . . . . Alert | -11 -10 -10 -9 ------- Run | Yrd Mat Min Mat Maximum Alert Level 3 | . 2 1 3 Low Security (%) 42 | 100 58 95 13 Level 1 19 | . 38 4 11 Level 2 33 | . 2 . 67 Level 3 3 | . . . 7 Level 4 . | . . . . Level 5 . | . . . . High Security . | . . . . Max Security . | . . . . Peak Influence 818 | 10 415 211 818 Initial 161 | . . 161 . Average 284 | 1 176 63 438 Influence Increases 2752 | 15 972 182 1583 Destroy 0b10 Robot/C 1500 | . 360 140 1000 Destroy 0b10 Robot/NC 140 | 15 65 . 60 Destroy Leader 352 | . 80 20 252 Successful Hack 120 | . 62 . 58 Select Force Hacks 150 | . 60 . 90 Disable Machine 120 | . 90 . 30 Destroy Structure 115 | . 45 22 48 Lose Combat Pursuer 255 | . 210 . 45 Influence Decreases 1944 | 15 557 597 775 Entered New Map 254 | . . 254 . Time Decay 1609 | 15 557 342 695 Lost Part 81 | . . 1 80 Squads Dispatched 17 | . 4 . 13 Investigation 12 | . 3 . 9 Extermination . | . . . . Reinforcement 3 | . 1 . 2 Assault 2 | . . . 2 Garrison . | . . . . Intercept . | . . . . Searches Triggered . | . . . . Construction Impeded . | . . . . Haulers Reinforced . | . . . . Active Scanning Responses . | . . . . Cargo Convoy Interrupts . | . . . . Stealth | -11 -10 -10 -9 --------- Run | Yrd Mat Min Mat Distress Signals 7 | . 3 . 4 Communications Jammed . | . . . . Distress Signals . | . . . . Times Spotted 120 | . 38 14 68 Peak Tracking Total 5 | . 4 3 5 Tactical Retreats 16 | . 12 1 3 Traps | -11 -10 -10 -9 ------- Run | Yrd Mat Min Mat Traps Triggered 4 | . 3 . 1 Indirectly . | . . . . Trap Hack Attempts . | . . . . Triggered . | . . . . Disarmed . | . . . . Reprogrammed . | . . . . Reused . | . . . . Traps Extracted . | . . . . Installed . | . . . . Triggered . | . . . . Machines | -11 -10 -10 -9 ---------- Run | Yrd Mat Min Mat Machines Disabled 8 | . 6 . 2 Max in Single Turn 1 | . 1 . 1 Machines Repaired . | . . . . Machines Dismantled . | . . . . Machines Sabotaged . | . . . . Overloaded Fab Kills . | . . . . Hacking | -11 -10 -10 -9 --------- Run | Yrd Mat Min Mat Machines Accessed 26 | . 10 . 16 Terminals 17 | . 7 . 10 Fabricators . | . . . . Repair Stations 3 | . 1 . 2 Recycling Units 4 | . 2 . 2 Scanalyzers 2 | . . . 2 Garrison Access . | . . . . Total Hacks 105 | . 50 . 55 Successful 68 | . 33 . 35 Failed 35 | . 16 . 19 Catastrophic 2 | . 1 . 1 Database Lockouts 2 | . 1 . 1 Manual 68 | . 39 . 29 Terminals 70 | . 37 . 33 Fabricators . | . . . . Repair Stations 13 | . 2 . 11 Recycling Units 17 | . 11 . 6 Scanalyzers 5 | . . . 5 Garrison Access . | . . . . Terminal Hacks 16 | . 6 . 10 Robot Analysis 2 | . 1 . 1 Prototype ID Bank 4 | . 1 . 3 Level Access Points 1 | . . . 1 Branch Access Points 1 | . 1 . . Terminal Index 2 | . 1 . 1 Locate Traps 5 | . 2 . 3 Hauler Manifests 1 | . . . 1 Fabricator Hacks . | . . . . Repair Station Hacks 6 | . 1 . 5 Scan Component 4 | . 1 . 3 Repair 2 | . . . 2 Recycling Unit Hacks 6 | . 4 . 2 Retrieve Matter 2 | . 2 . . Retrieve Components 4 | . 2 . 2 Scanalyzer 4 | . . . 4 Insert Component 1 | . . . 1 Analyze 2 | . . . 2 Retrieve Study 1 | . . . 1 Garrison Access Hacks . | . . . . Unauthorized Hacks 36 | . 22 . 14 Terminals 26 | . 16 . 10 Track 5 | . 4 . 1 Assimilate 2 | . 2 . . Botnet 7 | . 5 . 2 Disrupt 1 | . . . 1 Operators 2 | . 1 . 1 Skim 9 | . 4 . 5 Fabricators . | . . . . Repair Stations 1 | . . . 1 Patch 1 | . . . 1 Recycling Units 8 | . 6 . 2 Reject 2 | . 2 . . Mask 2 | . 2 . . Tunnel 4 | . 2 . 2 Scanalyzers 1 | . . . 1 Extract 1 | . . . 1 Garrison Access . | . . . . Data Cores Recovered . | . . . . Used . | . . . . Hacking Detections 23 | . 9 . 14 Full Trace Events 4 | . . . 4 Feedback Events 1 | . . . 1 Corruption 1 | . . . 1 Feedback Blocked . | . . . . Robot Schematics Acquired . | . . . . Robots Built . | . . . . Authchips . | . . . . Time . | . . . . Total Robot Build Rating . | . . . . Part Schematics Acquired 3 | . . . 3 Parts Built . | . . . . Authchips . | . . . . Time . | . . . . Total Part Build Rating . | . . . . Part Studies Acquired 1 | . . . 1 Parts Repaired 2 | . . . 2 Time 96 | . . . 96 Parts Recycled . | . . . . Recycled Matter . | . . . . Retrieved Matter . | . . . . Retrieved Components 30 | . 17 . 13 Parts Scanalyzed 1 | . . . 1 Part Schematics Acquired 1 | . . . 1 Parts Damaged 1 | . . . 1 Bothacking | -11 -10 -10 -9 ------------ Run | Yrd Mat Min Mat Used RIF Installer . | . . . . Robots Hacked . | . . . . Non-combat . | . . . . Combat . | . . . . Robot Hacks Applied . | . . . . Relay Couplers Released . | . . . . Fabnet Peak Effective % . | . . . . Robots Rewired . | . . . . Allies Hacked . | . . . . Hacks Repelled . | . . . . Allies | -11 -10 -10 -9 -------- Run | Yrd Mat Min Mat Total Allies . | . . . . Largest Group . | . . . . Highest-Rated Group . | . . . . Highest-Rated Ally . | . . . . Total Orders . | . . . . Ally Attacks . | . . . . Total Damage . | . . . . Kills . | . . . . Allies Corrupted . | . . . . Allies Melted . | . . . . Intel | -11 -10 -10 -9 ------- Run | Yrd Mat Min Mat Active Infowar (turns) 2460 | 12 2448 . . Terrain 2460 | 12 2448 . . Robot Analysis Total 2 | . 1 . 1 Derelict Logs Recovered 1 | . . 1 . Drone Launches . | . . . . Drone Recoveries . | . . . . Exploration | -11 -10 -10 -9 ------------- Run | Yrd Mat Min Mat Turns Passed 8432 | 89 2931 1321 4091 Spaces Moved 4344 | 43 1332 796 2173 Core 19 | 18 1 . . Treads 343 | . . 4 339 Legs 1282 | 25 1257 . . Wheels 2700 | . 74 792 1834 Hover . | . . . . Flight . | . . . . Fastest Speed 50 | 50 120 130 125 Average Speed 151 | 112 170 130 147 Slowest Speed 500 | 200 500 240 320 Overloaded Moves . | . . . . Propulsion Burnouts . | . . . . Robots Hopped . | . . . . Potential Cave-ins . | . . . . Cave-ins Triggered . | . . . . Exploration Rate (%) 74 | 4 99 97 99 Regions Visited 3 Branch Regions 1 Pre-discovered Areas 7 | . 2 . 5 Known Exits Taken 1 | . 1 . . Unknown Exits Taken 2 | 1 . 1 . Scrap Searched . | . . . . Spaces Dug 26 | . 8 13 5 Terrain Destroyed 110 | . 44 26 40 Melee 6 | . 1 . 5 Projectile 20 | . 7 3 10 AOE 84 | . 36 23 25 Terrain Rammed . | . . . . Walls Destroyed . | . . . . Machines Disabled . | . . . . Actions | -11 -10 -10 -9 --------- Run | Yrd Mat Min Mat Total 5712 | 64 1848 1017 2783 Wait 972 | . 393 182 397 Move 4341 | 42 1331 795 2173 Hop . | . . . . Pick Up 46 | 7 13 4 22 Fast Attach 18 | 7 9 . 2 Attach 15 | . 3 1 11 Detach 1 | . 1 . . Swap 42 | . 19 2 21 Drop 32 | . 13 . 19 Fire 225 | 8 62 33 122 Melee 20 | . 4 . 16 Ram . | . . . . Kick . | . . . . Crush . | . . . . Escape Stasis . | . . . . Rewire . | . . . . Trap . | . . . . Miscellaneous . | . . . . Route ------- -11/Scrapyard -10/Materials (discovered 4 exits: *Mat x3 / *Min) -10/Mines (discovered 2 exits: *Mat x2) -9/Materials (discovered 7 exits: *Mat x3 / [*Min x2] / [*Sto x2]) History --------- Turn | Location | Event 18 | -11/Scrapyard | Discovered new exit (range 16) 90 | -11/Scrapyard | Entered Materials 146 | -10/Materials | Central database locked down 308 | -10/Materials | Build established: Mutant 367 | -10/Materials | Discovered new exit (range 15) 957 | -10/Materials | Discovered new exit (range 10) 1571 | -10/Materials | Discovered new exit (range 12) 1922 | -10/Materials | Identified exit to Mines 2007 | -10/Materials | Discovered new exit (range 13) 3021 | -10/Materials | Entered Mines 3179 | -10/Mines | Assembled infested the area 3199 | -10/Mines | Core integrity fell below 50% 3782 | -10/Mines | Learned location of 1 exit from Materials 3800 | -10/Mines | Discovered new exit (range 9) 3974 | -10/Mines | Received a Rocket Launcher from a helpful Derelict 4011 | -10/Mines | Discovered new exit (range 5) 4342 | -10/Mines | Entered Materials 4342 | -9/Materials | Evolved 2 slots: Utility x2 4343 | -9/Materials | Identified exit to Materials 4344 | -9/Materials | Discovered new exit (range 7) 4588 | -9/Materials | Discovered new exit (range 13) 4655 | -9/Materials | Discovered new exit (range 12) 5153 | -9/Materials | Discovered new exit (range 16) 6266 | -9/Materials | Repaired Imp. Light Cannon 6938 | -9/Materials | Learned Storage trap positions 6947 | -9/Materials | Central database locked down 6994 | -9/Materials | Learned 2 Storage zone layouts 7005 | -9/Materials | Learned location of Mines (-8) 7007 | -9/Materials | Learned Storage emergency access door positions 7009 | -9/Materials | Learned Storage security intel 7010 | -9/Materials | Learned Recycling recycling unit intel 7011 | -9/Materials | Learned location of Recycling (-9) 7705 | -9/Materials | Repaired Broken Adv. Beam Cannon 8342 | -9/Materials | First assault squad dispatched 8433 | -9/Materials | Self-destructed Last Messages --------------- 08393_ G-34 Mercenary destroyed. 08393_ K-01 Serf collects debris. 08396_ Acquired 30 matter. 08398_ K-01 Serf collects debris. 08409_ C-45 Heavy ARC bursts open, deploying its payload. 08409_ G-47 Trooper unfolds itself. 08409_ G-34 Mercenary unfolds itself. 08409_ L-31 Rogue unfolds itself. 08409_ M-13 Machinist unfolds itself. 08418_ Destroyed Imp. Ion Engine. 08420_ K-01 Serf collects debris. 08421_ Arm. Wheel+ destroyed. 08421_ Melee Analysis Suite melted. 08421_ L-31 Rogue destroyed. 08422_ Power failure, Hvy. Ion Engine shutdown. 08424_ K-01 Serf collects debris. 08425_ G-34 Mercenary destroyed. 08427_ K-01 Serf collects debris. 08428_ Spread Laser destroyed. Map ----- +----------------------------------------------------+ | ????# + ! ## % #??# #######?????? | | ????# o############+###### # ####### | | ????# + # | | ????# ###### ##### ###### # # | | ????# #????# #???# #????# # # "T" | | ????# #???##/##### #????####### *# | | ????# #???# # #??######??# ####### | | ????# #???# # #### #??# ####### | | ????# #???# + #""==##?####### | | ????# #???# # #"Y= ########## | | ????# #???# # % #""[ # ! # | | ????# #???# # % # *# ! # ### | | ????# #???######## %# # # # | | ????# #????????###+##%# # #% + | | ????# #????????# # + # / # | | ????# #????????# [[ # # # """ # # " | | ????# #????????# [[ # ###### """ # ## " | | ????# #????????# [ # #### """ # ## " | | ????# #????????# = # + + ## " | | ????# #????????#!"" # ##### ####### ## " | | ????# #?########=Y" + #???###?????# ## | | ????# #?# !!!!#["" # #????######## ## " | | ????# #?# !!!!#=[= # #????# ## | | ????# #?# #=#### ###### ##] | | ????# ### #####%g #### | | ????# k @%m"" # #### | | ????# [%gT # | | ????# !== o = # #### | | ????# ###+#+######## # """"" #??? | | ????# # %% #???####### """"""""" #??? | | ????# < # =""" #?????????# """ """ #### | | ????# =%= """ #?????????# # | | ????#####[ """ #?????????# + | | ????????# #?????????# # | | ????????# " " #?????????# #### | | ????????# "R" #?????????########## ##### | | ????????# """ #??????????# # # | | ????????# = #??????????# + + | | ????????##########??????????# # # | | ????????????????????????????######### ##### | | ????????????????????????????????##### ##???? | | ????????????????????????????????# #????? | | ????????????????????????????????#! !#????? | | ????????????????????????????????##!!!!##????? | | ????????????????????????????????########????? | | ????????????????????????????????????????????? | | ????????????????????????????????????????????? | | ????????????????????????????????????????????? | | | | | +----------------------------------------------------+ Best States ------------- Heat Dissipation 42 Energy Generation 14 Energy Capacity 280 Matter Stores 300 Matter Capacity 300 Sight Range 16 Terrain Scan Range 16 Terrain Scan Density 10 Armor Coverage 300 Evasion (%) 55 Targeting Accuracy 5 Recoil Reduction 2 Authchip Count 1 Item Schematics ----------------- Adv. Beam Cannon | -9/Materials | Scanalyzed Wheel | -9/Materials | Extracted Imp. EM Shotgun | -9/Materials | Extracted Robot Schematics ------------------ None Fabricated ------------ Nothing Repaired ---------- Imp. Light Cannon | 17% | -9/Materials Adv. Beam Cannon | 99% | -9/Materials | Broken Studied --------- Arm. Wheel | -9/Materials | Hacked Alien Tech Used ----------------- None Achievements -------------- None Challenges ------------ None Game ------ Seed ZioniteLegDeflector Manual? 0 Play Time 00:59:33 Cumulative 703.2 hours Start 2025.11.16 @ 23:55:52 End 2025.11.17 @ 01:00:10 Sessions 1 Manual Loads 0 Difficulty Rogue Special Mode None Game No. 494 Rogue 494 Adventurer 0 Explorer 0 Win Type - Total 1 Types 1/0/0/0/0/0/0/0/0/0 Lore% 68 Gallery% 67 Achievement% 45 Wizard Run 0 Options --------- Layout 1 ASCII 0 Keyboard 0 Movement Mouse Keybinds 0 Fullscreen 1 Font 20/SmallcapsGlow Map View 54x42 Zoom Use 0% Tactical HUD 1 Map Filters NONE Filters NONE Steam 1 RUN: 63177e1a-7286-4c81-9c05-a459da769ab7